[Event "Titled Tuesday Blitz November 08 Early 2022"]
[White "Manon-og, Ramon Jr."]
[Black "Tharushi, T H D Niklesha"]
[WhiteFideId "5200776"]
[BlackFideId "9918264"]
[WhiteElo "2253"]
[BlackElo "1596"]
[Result "0-1"]
[Round "08"]
[TimeControl "180+1"]
[Date "2022.11.09"]
[WhiteClock "0:00:07"]
[BlackClock "0:01:56"]

1. e4 {[%clk 0:02:56]}  c6 {[%clk 0:02:59]} 2. d4 {[%clk 0:02:55]}  d5 {[%clk 0:03:00]} 3. e5 {[%clk 0:02:51]}  Bf5 {[%clk 0:02:58]} 4. Nd2 {[%clk 0:02:51]}  e6 {[%clk 0:02:57]} 5. Nb3 {[%clk 0:02:45]}  Nd7 {[%clk 0:02:57]} 6. Nf3 {[%clk 0:02:38]}  Ne7 {[%clk 0:02:56]} 7. Be2 {[%clk 0:02:36]}  c5 {[%clk 0:02:56]} 8. c3 {[%clk 0:02:33]}  Nc6 {[%clk 0:02:55]} 9. O-O {[%clk 0:02:32]}  c4 {[%clk 0:02:56]} 10. Nbd2 {[%clk 0:02:31]}  b5 {[%clk 0:02:57]} 11. a3 {[%clk 0:02:25]}  a5 {[%clk 0:02:54]} 12. h3 {[%clk 0:02:26]}  h6 {[%clk 0:02:49]} 13. Nh2 {[%clk 0:02:23]}  Be7 {[%clk 0:02:48]} 14. g4 {[%clk 0:02:22]}  Bh7 {[%clk 0:02:47]} 15. f4 {[%clk 0:02:21]}  Qb6 {[%clk 0:02:46]} 16. Kh1 {[%clk 0:02:03]}  O-O {[%clk 0:02:39]} 17. f5 {[%clk 0:02:02]}  exf5 {[%clk 0:02:39]} 18. gxf5 {[%clk 0:01:58]}  Nxd4 {[%clk 0:02:37]} 19. cxd4 {[%clk 0:01:46]}  Qxd4 {[%clk 0:02:38]} 20. Ndf3 {[%clk 0:01:45]}  Qe4 {[%clk 0:02:32]} 21. f6 {[%clk 0:01:29]}  gxf6 {[%clk 0:02:28]} 22. Bxh6 {[%clk 0:01:29]}  fxe5 {[%clk 0:02:24]} 23. Rg1+ {[%clk 0:01:26]}  Bg6 {[%clk 0:02:24]} 24. Bxf8 {[%clk 0:01:20]}  Rxf8 {[%clk 0:02:20]} 25. Rg4 {[%clk 0:01:16]}  Qe3 {[%clk 0:02:11]} 26. Nf1 {[%clk 0:01:08]}  Qf2 {[%clk 0:02:10]} 27. Rg2 {[%clk 0:01:08]}  Qc5 {[%clk 0:02:09]} 28. Qe1 {[%clk 0:00:55]}  d4 {[%clk 0:02:09]} 29. Nh4 {[%clk 0:00:07]}  Bxh4 {[%clk 0:01:56]} 0-1


[Site "https://www.chess.com"]

[Event "Titled Tuesday Blitz November 08 Early 2022"]
[White "Martinez Alcantara, Jose Eduardo"]
[Black "Tang, Andrew"]
[WhiteFideId "3805662"]
[BlackFideId "2059630"]
[WhiteElo "2705"]
[BlackElo "2581"]
[Result "1-0"]
[Round "08"]
[TimeControl "180+1"]
[Date "2022.11.08"]
[WhiteClock "0:00:59"]
[BlackClock "0:00:22"]

1. e4 {[%clk 0:03:00]}  e5 {[%clk 0:02:59]} 2. Nf3 {[%clk 0:03:01]}  Nc6 {[%clk 0:03:00]} 3. Bb5 {[%clk 0:03:02]}  a6 {[%clk 0:02:55]} 4. Ba4 {[%clk 0:03:02]}  Nf6 {[%clk 0:02:55]} 5. O-O {[%clk 0:03:02]}  Be7 {[%clk 0:02:56]} 6. Re1 {[%clk 0:03:02]}  b5 {[%clk 0:02:56]} 7. Bb3 {[%clk 0:03:03]}  d6 {[%clk 0:02:57]} 8. c3 {[%clk 0:03:03]}  O-O {[%clk 0:02:57]} 9. h3 {[%clk 0:03:04]}  Bb7 {[%clk 0:02:57]} 10. d4 {[%clk 0:03:04]}  Re8 {[%clk 0:02:58]} 11. Ng5 {[%clk 0:03:05]}  Rf8 {[%clk 0:02:58]} 12. Nf3 {[%clk 0:03:06]}  Re8 {[%clk 0:02:59]} 13. Nbd2 {[%clk 0:03:05]}  Bf8 {[%clk 0:02:59]} 14. a3 {[%clk 0:03:00]}  g6 {[%clk 0:02:58]} 15. Bc2 {[%clk 0:03:00]}  Bg7 {[%clk 0:02:58]} 16. b3 {[%clk 0:02:50]}  d5 {[%clk 0:02:30]} 17. Nxe5 {[%clk 0:02:27]}  Nxe5 {[%clk 0:02:29]} 18. dxe5 {[%clk 0:02:28]}  Rxe5 {[%clk 0:02:30]} 19. f4 {[%clk 0:02:27]}  Rxe4 {[%clk 0:02:21]} 20. Nxe4 {[%clk 0:02:24]}  Nxe4 {[%clk 0:02:21]} 21. Bxe4 {[%clk 0:02:17]}  dxe4 {[%clk 0:02:21]} 22. Qc2 {[%clk 0:02:11]}  Qf6 {[%clk 0:01:35]} 23. Be3 {[%clk 0:02:11]}  c5 {[%clk 0:01:20]} 24. Rac1 {[%clk 0:02:02]}  Rc8 {[%clk 0:01:19]} 25. Red1 {[%clk 0:01:56]}  h5 {[%clk 0:01:16]} 26. c4 {[%clk 0:01:49]}  Qe6 {[%clk 0:01:10]} 27. Qd2 {[%clk 0:01:42]}  bxc4 {[%clk 0:01:01]} 28. bxc4 {[%clk 0:01:43]}  Bc6 {[%clk 0:01:00]} 29. Qd6 {[%clk 0:01:35]}  Qf5 {[%clk 0:01:00]} 30. Qd2 {[%clk 0:01:18]}  h4 {[%clk 0:00:55]} 31. Qf2 {[%clk 0:01:18]}  Bf6 {[%clk 0:00:53]} 32. Rd6 {[%clk 0:01:16]}  Be7 {[%clk 0:00:51]} 33. Rd2 {[%clk 0:01:15]}  Rb8 {[%clk 0:00:50]} 34. Rb2 {[%clk 0:01:13]}  Rd8 {[%clk 0:00:48]} 35. Rcb1 {[%clk 0:01:13]}  Rd3 {[%clk 0:00:48]} 36. Rd2 {[%clk 0:01:07]}  Rxa3 {[%clk 0:00:43]} 37. Rb8+ {[%clk 0:01:06]}  Kh7 {[%clk 0:00:41]} 38. Rdd8 {[%clk 0:01:04]}  Bxd8 {[%clk 0:00:22]} 39. Rxd8 {[%clk 0:01:05]}  Qh5 {[%clk 0:00:22]} 40. Qb2 {[%clk 0:00:59]} 1-0


[Site "https://www.chess.com"]

[Event "Titled Tuesday Blitz November 08 Early 2022"]
[White "Mazurkiewicz, Michal"]
[Black "Noboa Silva, Kevin"]
[WhiteFideId "1124943"]
[BlackFideId "3618471"]
[WhiteElo "2063"]
[BlackElo "2178"]
[Result "0-1"]
[Round "08"]
[TimeControl "180+1"]
[Date "2022.11.09"]
[WhiteClock "0:00:01"]
[BlackClock "0:00:09"]

1. e4 {[%clk 0:03:00]}  e6 {[%clk 0:02:58]} 2. d3 {[%clk 0:03:00]}  d5 {[%clk 0:02:58]} 3. Nd2 {[%clk 0:03:01]}  c5 {[%clk 0:02:58]} 4. Ngf3 {[%clk 0:03:01]}  Nf6 {[%clk 0:02:58]} 5. g3 {[%clk 0:03:01]}  g6 {[%clk 0:02:55]} 6. Bg2 {[%clk 0:03:01]}  Bg7 {[%clk 0:02:55]} 7. O-O {[%clk 0:03:01]}  O-O {[%clk 0:02:56]} 8. Re1 {[%clk 0:03:01]}  Nc6 {[%clk 0:02:56]} 9. Qe2 {[%clk 0:03:01]}  a5 {[%clk 0:02:54]} 10. a4 {[%clk 0:02:58]}  b6 {[%clk 0:02:54]} 11. c3 {[%clk 0:02:57]}  Ba6 {[%clk 0:02:50]} 12. exd5 {[%clk 0:02:50]}  exd5 {[%clk 0:02:50]} 13. Nf1 {[%clk 0:02:43]}  Re8 {[%clk 0:02:50]} 14. Qc2 {[%clk 0:02:43]}  Qd7 {[%clk 0:02:41]} 15. Bg5 {[%clk 0:02:39]}  h6 {[%clk 0:02:40]} 16. Bxf6 {[%clk 0:02:35]}  Bxf6 {[%clk 0:02:40]} 17. Ne3 {[%clk 0:02:35]}  Ne7 {[%clk 0:02:35]} 18. d4 {[%clk 0:02:13]}  Bb7 {[%clk 0:02:25]} 19. Ne5 {[%clk 0:02:10]}  Bxe5 {[%clk 0:02:21]} 20. dxe5 {[%clk 0:02:11]}  d4 {[%clk 0:02:20]} 21. Bxb7 {[%clk 0:01:57]}  Qxb7 {[%clk 0:02:19]} 22. cxd4 {[%clk 0:01:57]}  cxd4 {[%clk 0:02:16]} 23. Ng4 {[%clk 0:01:57]}  Rec8 {[%clk 0:02:15]} 24. Qd2 {[%clk 0:01:57]}  Nf5 {[%clk 0:02:13]} 25. Nxh6+ {[%clk 0:01:55]}  Nxh6 {[%clk 0:02:13]} 26. Qxh6 {[%clk 0:01:56]}  Qf3 {[%clk 0:02:02]} 27. Qd2 {[%clk 0:01:21]}  Rc4 {[%clk 0:01:52]} 28. e6 {[%clk 0:01:19]}  Re8 {[%clk 0:01:26]} 29. exf7+ {[%clk 0:00:58]}  Qxf7 {[%clk 0:01:25]} 30. Rxe8+ {[%clk 0:00:46]}  Qxe8 {[%clk 0:01:25]} 31. Re1 {[%clk 0:00:46]}  Qf7 {[%clk 0:01:16]} 32. Qg5 {[%clk 0:00:30]}  Rc8 {[%clk 0:00:44]} 33. Re7 {[%clk 0:00:23]}  Qf5 {[%clk 0:00:44]} 34. Qh6 {[%clk 0:00:15]}  Qf6 {[%clk 0:00:28]} 35. Re4 {[%clk 0:00:04]}  d3 {[%clk 0:00:18]} 36. Rg4 {[%clk 0:00:05]}  Rc6 {[%clk 0:00:15]} 37. Rh4 {[%clk 0:00:04]}  Qg7 {[%clk 0:00:12]} 38. Qg5 {[%clk 0:00:03]}  Rd6 {[%clk 0:00:11]} 39. Re4 {[%clk 0:00:03]}  Qf7 {[%clk 0:00:10]} 40. Rf4 {[%clk 0:00:01]}  Qe8 {[%clk 0:00:09]} 41. Rg4 {[%clk 0:00:01]}  d2 {[%clk 0:00:09]} 0-1


[Site "https://www.chess.com"]

[Event "Titled Tuesday Blitz November 08 Early 2022"]
[White "Nakamura, Hikaru"]
[Black "Bortnyk, Olexandr"]
[WhiteFideId "2016192"]
[BlackFideId "14120828"]
[WhiteElo "2909"]
[BlackElo "2723"]
[Result "1-0"]
[Round "08"]
[TimeControl "180+1"]
[Date "2022.11.08"]
[WhiteClock "0:00:36"]
[BlackClock "0:00:01"]

1. e4 {[%clk 0:03:00]}  Nf6 {[%clk 0:02:59]} 2. Nc3 {[%clk 0:02:57]}  d5 {[%clk 0:02:59]} 3. e5 {[%clk 0:02:57]}  Nfd7 {[%clk 0:03:00]} 4. f4 {[%clk 0:02:57]}  d4 {[%clk 0:03:00]} 5. Nce2 {[%clk 0:02:53]}  d3 {[%clk 0:03:00]} 6. Ng3 {[%clk 0:02:47]}  Nc5 {[%clk 0:02:53]} 7. c3 {[%clk 0:02:36]}  h5 {[%clk 0:02:53]} 8. b4 {[%clk 0:02:31]}  h4 {[%clk 0:02:51]} 9. bxc5 {[%clk 0:02:29]}  hxg3 {[%clk 0:02:51]} 10. h3 {[%clk 0:02:30]}  Na6 {[%clk 0:02:19]} 11. Qf3 {[%clk 0:02:22]}  Nxc5 {[%clk 0:02:12]} 12. Ba3 {[%clk 0:02:22]}  e6 {[%clk 0:02:01]} 13. Bxc5 {[%clk 0:02:16]}  Bxc5 {[%clk 0:02:02]} 14. Bxd3 {[%clk 0:02:16]}  Bf2+ {[%clk 0:02:00]} 15. Kd1 {[%clk 0:02:09]}  Bd7 {[%clk 0:01:52]} 16. Ne2 {[%clk 0:02:06]}  Bc6 {[%clk 0:01:31]} 17. Be4 {[%clk 0:02:06]}  Bxe4 {[%clk 0:01:21]} 18. Qxe4 {[%clk 0:02:06]}  Qd7 {[%clk 0:01:21]} 19. Kc2 {[%clk 0:01:58]}  O-O {[%clk 0:01:18]} 20. h4 {[%clk 0:01:52]}  f5 {[%clk 0:01:15]} 21. exf6 {[%clk 0:01:53]}  Rxf6 {[%clk 0:01:16]} 22. h5 {[%clk 0:01:47]}  Rd8 {[%clk 0:01:10]} 23. d3 {[%clk 0:01:42]}  Qd5 {[%clk 0:01:02]} 24. Rh3 {[%clk 0:01:06]}  Qxe4 {[%clk 0:00:50]} 25. dxe4 {[%clk 0:01:07]}  Be3 {[%clk 0:00:51]} 26. Kb3 {[%clk 0:01:02]}  Rd2 {[%clk 0:00:43]} 27. e5 {[%clk 0:00:52]}  Rf7 {[%clk 0:00:34]} 28. Nxg3 {[%clk 0:00:50]}  Bxf4 {[%clk 0:00:31]} 29. Ne4 {[%clk 0:00:47]}  Rxg2 {[%clk 0:00:31]} 30. Rd1 {[%clk 0:00:47]}  Bxe5 {[%clk 0:00:28]} 31. Rd8+ {[%clk 0:00:45]}  Kh7 {[%clk 0:00:28]} 32. Re8 {[%clk 0:00:46]}  Rf4 {[%clk 0:00:19]} 33. Nc5 {[%clk 0:00:46]}  b5 {[%clk 0:00:15]} 34. Nxe6 {[%clk 0:00:43]}  Rff2 {[%clk 0:00:09]} 35. Nf8+ {[%clk 0:00:40]}  Kh6 {[%clk 0:00:10]} 36. Rxe5 {[%clk 0:00:38]}  Rb2+ {[%clk 0:00:09]} 37. Ka3 {[%clk 0:00:38]}  Rxa2+ {[%clk 0:00:02]} 38. Kb4 {[%clk 0:00:38]}  Rab2+ {[%clk 0:00:01]} 39. Kc5 {[%clk 0:00:38]}  Rbf2 {[%clk 0:00:01]} 40. Re6+ {[%clk 0:00:36]} 1-0


[Site "https://www.chess.com"]

[Event "Titled Tuesday Blitz November 08 Early 2022"]
[White "Postny, Evgeny"]
[Black "Ovchinnikov, Vsevolod"]
[WhiteFideId "2804344"]
[BlackFideId "24176842"]
[WhiteElo "2476"]
[BlackElo "2376"]
[Result "1-0"]
[Round "08"]
[TimeControl "180+1"]
[Date "2022.11.09"]
[WhiteClock "0:00:05"]
[BlackClock "0:00:02"]

1. Nf3 {[%clk 0:02:55]}  Nf6 {[%clk 0:03:00]} 2. c4 {[%clk 0:02:55]}  g6 {[%clk 0:03:00]} 3. b4 {[%clk 0:02:53]}  Bg7 {[%clk 0:02:57]} 4. Bb2 {[%clk 0:02:54]}  c6 {[%clk 0:02:56]} 5. e3 {[%clk 0:02:53]}  d5 {[%clk 0:02:57]} 6. Be2 {[%clk 0:02:48]}  O-O {[%clk 0:02:56]} 7. O-O {[%clk 0:02:48]}  Bg4 {[%clk 0:02:53]} 8. c5 {[%clk 0:02:45]}  Nbd7 {[%clk 0:02:52]} 9. d4 {[%clk 0:02:43]}  Re8 {[%clk 0:02:46]} 10. Nbd2 {[%clk 0:02:42]}  a6 {[%clk 0:02:37]} 11. Qb3 {[%clk 0:02:34]}  e5 {[%clk 0:02:12]} 12. dxe5 {[%clk 0:02:35]}  Ne4 {[%clk 0:02:11]} 13. Nxe4 {[%clk 0:02:03]}  dxe4 {[%clk 0:02:11]} 14. Nd4 {[%clk 0:02:04]}  Nxe5 {[%clk 0:01:53]} 15. Rad1 {[%clk 0:01:37]}  Qg5 {[%clk 0:01:23]} 16. Bxg4 {[%clk 0:01:28]}  Qxg4 {[%clk 0:01:20]} 17. h3 {[%clk 0:01:26]}  Qh4 {[%clk 0:01:20]} 18. Ne2 {[%clk 0:01:21]}  Nd3 {[%clk 0:00:47]} 19. Bxg7 {[%clk 0:01:22]}  Kxg7 {[%clk 0:00:47]} 20. Nc1 {[%clk 0:01:15]}  Ne5 {[%clk 0:00:43]} 21. Rd6 {[%clk 0:01:09]}  Re7 {[%clk 0:00:39]} 22. Qc3 {[%clk 0:01:03]}  Rae8 {[%clk 0:00:31]} 23. Ne2 {[%clk 0:00:57]}  f6 {[%clk 0:00:16]} 24. Ng3 {[%clk 0:00:44]}  Nf7 {[%clk 0:00:16]} 25. Rd4 {[%clk 0:00:38]}  h5 {[%clk 0:00:11]} 26. Rfd1 {[%clk 0:00:33]}  Qg5 {[%clk 0:00:10]} 27. Qc2 {[%clk 0:00:24]}  f5 {[%clk 0:00:08]} 28. Qc3 {[%clk 0:00:18]}  Qf6 {[%clk 0:00:09]} 29. Qa1 {[%clk 0:00:11]}  h4 {[%clk 0:00:08]} 30. Ne2 {[%clk 0:00:11]}  g5 {[%clk 0:00:09]} 31. R4d2 {[%clk 0:00:09]}  Qxa1 {[%clk 0:00:09]} 32. Rxa1 {[%clk 0:00:09]}  Rd8 {[%clk 0:00:09]} 33. Rxd8 {[%clk 0:00:08]}  Nxd8 {[%clk 0:00:10]} 34. Rd1 {[%clk 0:00:08]}  Nf7 {[%clk 0:00:10]} 35. Nd4 {[%clk 0:00:05]}  Kf6 {[%clk 0:00:10]} 36. Nb3 {[%clk 0:00:05]}  Ke6 {[%clk 0:00:07]} 37. Na5 {[%clk 0:00:05]}  Rc7 {[%clk 0:00:06]} 38. Nc4 {[%clk 0:00:04]}  Rd7 {[%clk 0:00:05]} 39. Rxd7 {[%clk 0:00:04]}  Kxd7 {[%clk 0:00:06]} 40. g3 {[%clk 0:00:04]}  Nd8 {[%clk 0:00:03]} 41. Kg2 {[%clk 0:00:03]}  Ke6 {[%clk 0:00:03]} 42. gxh4 {[%clk 0:00:03]}  gxh4 {[%clk 0:00:04]} 43. f3 {[%clk 0:00:04]}  Kd5 {[%clk 0:00:02]} 44. Na5 {[%clk 0:00:03]}  Ke5 {[%clk 0:00:02]} 45. Kf2 {[%clk 0:00:03]}  Kd5 {[%clk 0:00:02]} 46. Ke2 {[%clk 0:00:04]}  Ke5 {[%clk 0:00:02]} 47. f4+ {[%clk 0:00:04]}  Kd5 {[%clk 0:00:03]} 48. Kd2 {[%clk 0:00:04]}  Ke6 {[%clk 0:00:03]} 49. Kc3 {[%clk 0:00:05]}  Kd5 {[%clk 0:00:02]} 50. Nc4 {[%clk 0:00:05]}  Nf7 {[%clk 0:00:01]} 51. Nb6+ {[%clk 0:00:05]}  Ke6 {[%clk 0:00:02]} 52. Kd4 {[%clk 0:00:06]}  Nh6 {[%clk 0:00:02]} 53. Nc8 {[%clk 0:00:05]}  Ng8 {[%clk 0:00:02]} 54. Nd6 {[%clk 0:00:05]}  Nf6 {[%clk 0:00:02]} 55. Nxb7 {[%clk 0:00:05]}  Nd5 {[%clk 0:00:03]} 56. a3 {[%clk 0:00:05]}  Nc7 {[%clk 0:00:03]} 57. Na5 {[%clk 0:00:05]}  Kd7 {[%clk 0:00:03]} 58. Nc4 {[%clk 0:00:04]}  Nd5 {[%clk 0:00:03]} 59. Ke5 {[%clk 0:00:03]}  Ne7 {[%clk 0:00:02]} 60. Kf6 {[%clk 0:00:04]}  Ke8 {[%clk 0:00:01]} 61. Ke6 {[%clk 0:00:04]}  Kd8 {[%clk 0:00:02]} 62. Kd6 {[%clk 0:00:04]}  Ke8 {[%clk 0:00:02]} 63. Kc7 {[%clk 0:00:04]}  Kf7 {[%clk 0:00:01]} 64. Kb6 {[%clk 0:00:05]}  Ke6 {[%clk 0:00:02]} 65. Kxa6 {[%clk 0:00:05]}  Nd5 {[%clk 0:00:02]} 66. Kb7 {[%clk 0:00:05]}  Nc3 {[%clk 0:00:02]} 67. Kxc6 {[%clk 0:00:05]}  Na4 {[%clk 0:00:02]} 68. b5 {[%clk 0:00:05]}  Ke7 {[%clk 0:00:02]} 69. b6 {[%clk 0:00:05]} 1-0


[Site "https://www.chess.com"]

[Event "Titled Tuesday Blitz November 08 Early 2022"]
[White "Prem, Pranav"]
[Black "Estrada Nieto, Julian"]
[WhiteFideId "30901057"]
[BlackFideId "5101018"]
[WhiteElo "1970"]
[BlackElo "2221"]
[Result "0-1"]
[Round "08"]
[TimeControl "180+1"]
[Date "2022.11.09"]
[WhiteClock "0:00:08"]
[BlackClock "0:00:06"]

1. d4 {[%clk 0:02:36]}  d5 {[%clk 0:02:59]} 2. c4 {[%clk 0:02:36]}  dxc4 {[%clk 0:02:59]} 3. Nf3 {[%clk 0:02:36]}  Nf6 {[%clk 0:03:00]} 4. e3 {[%clk 0:02:36]}  e6 {[%clk 0:03:00]} 5. Bxc4 {[%clk 0:02:36]}  a6 {[%clk 0:03:01]} 6. O-O {[%clk 0:02:31]}  c5 {[%clk 0:03:01]} 7. Bb3 {[%clk 0:02:31]}  Nc6 {[%clk 0:03:01]} 8. Nc3 {[%clk 0:02:28]}  Be7 {[%clk 0:02:55]} 9. Bc2 {[%clk 0:01:55]}  O-O {[%clk 0:02:52]} 10. a3 {[%clk 0:01:55]}  cxd4 {[%clk 0:02:44]} 11. exd4 {[%clk 0:01:54]}  b5 {[%clk 0:02:45]} 12. Bg5 {[%clk 0:01:44]}  Bb7 {[%clk 0:02:44]} 13. Qd2 {[%clk 0:01:34]}  Na5 {[%clk 0:02:37]} 14. Qf4 {[%clk 0:01:26]}  Bxf3 {[%clk 0:02:31]} 15. Qxf3 {[%clk 0:01:21]}  Nd5 {[%clk 0:01:58]} 16. Qh3 {[%clk 0:01:05]}  g6 {[%clk 0:01:55]} 17. Bh6 {[%clk 0:01:03]}  Nxc3 {[%clk 0:01:45]} 18. bxc3 {[%clk 0:00:55]}  Re8 {[%clk 0:01:45]} 19. a4 {[%clk 0:00:51]}  b4 {[%clk 0:01:41]} 20. cxb4 {[%clk 0:00:47]}  Nc6 {[%clk 0:01:36]} 21. Be4 {[%clk 0:00:38]}  Rc8 {[%clk 0:01:29]} 22. Bxc6 {[%clk 0:00:38]}  Rxc6 {[%clk 0:01:29]} 23. b5 {[%clk 0:00:39]}  Rd6 {[%clk 0:01:14]} 24. bxa6 {[%clk 0:00:28]}  Rxd4 {[%clk 0:01:14]} 25. Be3 {[%clk 0:00:26]}  Rh4 {[%clk 0:01:05]} 26. Qg3 {[%clk 0:00:25]}  Bd6 {[%clk 0:01:02]} 27. f4 {[%clk 0:00:23]}  e5 {[%clk 0:00:32]} 28. a7 {[%clk 0:00:18]}  exf4 {[%clk 0:00:31]} 29. Bxf4 {[%clk 0:00:17]}  Qb6+ {[%clk 0:00:22]} 30. Kh1 {[%clk 0:00:16]}  Rxf4 {[%clk 0:00:22]} 31. Rxf4 {[%clk 0:00:15]}  Bxf4 {[%clk 0:00:21]} 32. Qxf4 {[%clk 0:00:15]}  Qxa7 {[%clk 0:00:21]} 33. h3 {[%clk 0:00:15]}  h5 {[%clk 0:00:20]} 34. a5 {[%clk 0:00:15]}  Re6 {[%clk 0:00:19]} 35. Qc4 {[%clk 0:00:13]}  Ra6 {[%clk 0:00:18]} 36. Qd5 {[%clk 0:00:13]}  Qb8 {[%clk 0:00:16]} 37. Re1 {[%clk 0:00:11]}  Qa8 {[%clk 0:00:10]} 38. Qxa8+ {[%clk 0:00:09]}  Rxa8 {[%clk 0:00:10]} 39. Ra1 {[%clk 0:00:10]}  Ra6 {[%clk 0:00:09]} 40. Kg1 {[%clk 0:00:10]}  Kf8 {[%clk 0:00:10]} 41. Kf2 {[%clk 0:00:11]}  Ke7 {[%clk 0:00:11]} 42. Ke3 {[%clk 0:00:12]}  Kd6 {[%clk 0:00:12]} 43. Ke4 {[%clk 0:00:12]}  f6 {[%clk 0:00:11]} 44. Kf4 {[%clk 0:00:11]}  Ke6 {[%clk 0:00:11]} 45. Ke4 {[%clk 0:00:11]}  Kd6 {[%clk 0:00:11]} 46. g3 {[%clk 0:00:12]}  Kc5 {[%clk 0:00:10]} 47. g4 {[%clk 0:00:08]}  h4 {[%clk 0:00:09]} 48. Kf4 {[%clk 0:00:06]}  Kb5 {[%clk 0:00:09]} 49. g5 {[%clk 0:00:06]}  f5 {[%clk 0:00:08]} 50. Re1 {[%clk 0:00:04]}  Rxa5 {[%clk 0:00:07]} 51. Re6 {[%clk 0:00:05]}  Ra6 {[%clk 0:00:06]} 52. Re5+ {[%clk 0:00:05]}  Kb4 {[%clk 0:00:07]} 53. Re8 {[%clk 0:00:05]}  Kc3 {[%clk 0:00:07]} 54. Rh8 {[%clk 0:00:05]}  Ra4+ {[%clk 0:00:06]} 55. Ke5 {[%clk 0:00:05]}  Kd3 {[%clk 0:00:06]} 56. Kf6 {[%clk 0:00:04]}  f4 {[%clk 0:00:05]} 57. Kxg6 {[%clk 0:00:05]}  f3 {[%clk 0:00:05]} 58. Rf8 {[%clk 0:00:05]}  Ke2 {[%clk 0:00:05]} 59. Kh7 {[%clk 0:00:05]}  f2 {[%clk 0:00:05]} 60. g6 {[%clk 0:00:05]}  f1=Q {[%clk 0:00:05]} 61. Rxf1 {[%clk 0:00:06]}  Kxf1 {[%clk 0:00:05]} 62. g7 {[%clk 0:00:06]}  Ra7 {[%clk 0:00:05]} 63. Kh6 {[%clk 0:00:05]}  Rxg7 {[%clk 0:00:05]} 64. Kxg7 {[%clk 0:00:06]}  Kg2 {[%clk 0:00:06]} 65. Kg6 {[%clk 0:00:07]}  Kxh3 {[%clk 0:00:06]} 66. Kf5 {[%clk 0:00:07]}  Kg3 {[%clk 0:00:06]} 67. Ke4 {[%clk 0:00:08]}  h3 {[%clk 0:00:06]} 0-1


[Site "https://www.chess.com"]

[Event "Titled Tuesday Blitz November 08 Early 2022"]
[White "Raahul V S"]
[Black "Wagner, Dennis"]
[WhiteFideId "25035525"]
[BlackFideId "24650684"]
[WhiteElo "2233"]
[BlackElo "2470"]
[Result "0-1"]
[Round "08"]
[TimeControl "180+1"]
[Date "2022.11.09"]
[WhiteClock "0:00:09"]
[BlackClock "0:00:17"]

1. b3 {[%clk 0:03:00]}  g6 {[%clk 0:02:59]} 2. Bb2 {[%clk 0:02:59]}  Nf6 {[%clk 0:03:00]} 3. g3 {[%clk 0:02:51]}  Bg7 {[%clk 0:02:58]} 4. Bg2 {[%clk 0:02:52]}  O-O {[%clk 0:02:57]} 5. Nf3 {[%clk 0:02:51]}  d6 {[%clk 0:02:54]} 6. d4 {[%clk 0:02:51]}  b5 {[%clk 0:02:54]} 7. a4 {[%clk 0:02:42]}  b4 {[%clk 0:02:52]} 8. Nfd2 {[%clk 0:02:40]}  c6 {[%clk 0:02:45]} 9. a5 {[%clk 0:02:33]}  Bd7 {[%clk 0:02:26]} 10. a6 {[%clk 0:02:27]}  Qc8 {[%clk 0:02:24]} 11. O-O {[%clk 0:02:10]}  Nxa6 {[%clk 0:02:24]} 12. e3 {[%clk 0:02:11]}  Nc7 {[%clk 0:02:24]} 13. Nc4 {[%clk 0:02:06]}  Nb5 {[%clk 0:02:14]} 14. Ra4 {[%clk 0:01:54]}  d5 {[%clk 0:01:58]} 15. Ne5 {[%clk 0:01:52]}  a5 {[%clk 0:01:58]} 16. Qd2 {[%clk 0:01:50]}  Ne4 {[%clk 0:01:50]} 17. Bxe4 {[%clk 0:01:45]}  dxe4 {[%clk 0:01:51]} 18. Nc4 {[%clk 0:01:40]}  Bh3 {[%clk 0:01:50]} 19. Re1 {[%clk 0:01:34]}  Qf5 {[%clk 0:01:47]} 20. Qe2 {[%clk 0:01:20]}  Nd6 {[%clk 0:01:47]} 21. Ne5 {[%clk 0:01:15]}  Bxe5 {[%clk 0:01:27]} 22. dxe5 {[%clk 0:01:13]}  Nb5 {[%clk 0:01:27]} 23. c3 {[%clk 0:01:13]}  Rfd8 {[%clk 0:01:09]} 24. cxb4 {[%clk 0:01:09]}  axb4 {[%clk 0:01:10]} 25. Rxb4 {[%clk 0:01:09]}  Ra2 {[%clk 0:01:10]} 26. f4 {[%clk 0:01:00]}  exf3 {[%clk 0:01:08]} 27. Qf2 {[%clk 0:00:57]}  g5 {[%clk 0:00:44]} 28. Rc4 {[%clk 0:00:47]}  g4 {[%clk 0:00:35]} 29. Rxc6 {[%clk 0:00:33]}  Qd3 {[%clk 0:00:35]} 30. e6 {[%clk 0:00:14]}  Qxb3 {[%clk 0:00:28]} 31. exf7+ {[%clk 0:00:13]}  Kxf7 {[%clk 0:00:29]} 32. Rc2 {[%clk 0:00:14]}  Rd3 {[%clk 0:00:21]} 33. e4 {[%clk 0:00:14]}  Nd4 {[%clk 0:00:19]} 34. e5 {[%clk 0:00:10]}  Qxc2 {[%clk 0:00:18]} 35. e6+ {[%clk 0:00:10]}  Kg6 {[%clk 0:00:18]} 36. Bxd4 {[%clk 0:00:09]}  Rxd4 {[%clk 0:00:17]} 0-1


[Site "https://www.chess.com"]